bitfinex/quotes_SOLUSD_20250421
["timestamp","ask_amount","ask_price","bid_price","bid_amount"]
[1745270246877,40.57995233,136.42,136.35,26.0]
[1745270258113,21.93030347,136.42,136.37,26.0]
[1745270262887,21.93030347,136.42,136.34,81.83]
[1745270263092,21.93030347,136.42,136.37,26.0]
[1745270273110,7.33030347,136.42,136.37,26.0]
[1745270298913,13.55973368,136.43,136.37,26.0]
[1745270301546,21.92950874,136.44,136.37,26.0]
[1745270316253,7.32950874,136.44,136.37,26.0]
[1745270317848,0.063,136.45,136.37,26.0]
[1745270318145,0.063,136.45,136.41,26.0]
[1745270324629,0.063,136.45,136.38,81.8]
[1745270324630,8.0438,136.45,136.38,81.8]
[1745270324945,8.0438,136.45,136.38,26.0]
[1745270325146,7.32976618,136.43,136.35,83.3038]
[1745270325533,7.32976618,136.43,136.38,26.0]
[1745270326438,7.32976618,136.43,136.35,83.3038]
[1745270326636,7.32976618,136.43,136.38,26.0]
[1745270327652,7.9808,136.42,136.36,26.0]
[1745270327866,7.9808,136.42,136.34,0.03]
[1745270327867,38.64964886,136.41,136.34,0.03]
[1745270328154,7.9808,136.39,136.34,0.03]
[1745270328457,7.9808,136.39,136.34,26.03]
[1745270329036,7.9808,136.39,136.34,0.03]
[1745270329741,7.33245343,136.38,136.34,0.03]
[1745270336372,18.64964886,136.35,136.34,0.03]
[1745270336570,26.0606,136.36,136.34,0.03]
[1745270336571,6.0606,136.36,136.34,0.03]
[1745270337570,7.33406674,136.35,136.34,0.03]
[1745270339471,25.9837156,136.35,136.34,0.03]
[1745270340361,27.77177717,136.35,136.34,0.03]
[1745270340564,42.41177717,136.35,136.34,0.03]
[1745270340876,124.21177717,136.35,136.34,0.03]
[1745270343376,124.21177717,136.35,136.33,1e-08]
[1745270343674,38.79181043,136.34,136.33,1e-08]
[1745270343875,46.12641509,136.34,136.33,1e-08]
[1745270344866,20.0,136.32,136.31,0.03]
[1745270345174,20.14216157,136.32,136.31,0.03]
[1745270345987,27.47784232,136.32,136.31,0.03]
[1745270352247,89.13568075,136.32,136.31,0.03]
[1745270355367,25.98479152,136.33,136.31,0.03]
[1745270356478,18.64964886,136.31,136.3,0.03]
[1745270357368,20.0,136.32,136.3,0.03]
[1745270358474,7.33621891,136.31,136.3,0.03]
[1745270360575,25.98532961,136.32,136.3,0.03]
[1745270360780,7.33568075,136.32,136.3,0.03]
[1745270361022,7.7065,136.34,136.3,0.03]
[1745270361194,7.33460466,136.34,136.3,0.03]
[1745270361854,25.98425352,136.34,136.3,0.03]
[1745270362060,18.64964886,136.33,136.3,0.03]
[1745270363085,7.33568075,136.32,136.3,0.03]
[1745270369080,7.3352379,136.33,136.3,0.03]
[1745270372797,81.8,136.34,136.3,0.03]
[1745270372999,89.13466332,136.34,136.3,0.03]
[1745270375879,7.33406674,136.35,136.3,0.03]
[1745270395026,100.44964886,136.34,136.3,0.03]
[1745270399330,7.33568075,136.32,136.3,0.03]
[1745270418160,81.8,136.31,136.3,0.03]
[1745270418330,100.44964886,136.31,136.3,0.03]
[1745270418527,115.00964886,136.31,136.3,0.03]
[1745270419246,135.15181043,136.31,136.3,0.03]
[1745270419427,96.36,136.31,136.3,0.03]
[1745270420652,103.69621891,136.31,136.3,0.03]
[1745270423943,122.34586777,136.31,136.3,0.03]
[1745270428756,40.54586777,136.31,136.3,0.03]
[1745270429153,46.96322934,136.31,136.3,0.03]
[1745270429464,100.44964886,136.3,136.29,0.03]
[1745270430256,81.8,136.3,136.29,0.03]
[1745270431340,89.13675715,136.3,136.29,0.03]
[1745270434554,7.33675715,136.3,136.29,0.03]
[1745270446152,51.98640601,136.3,136.28,0.03]
[1745270446356,18.64964886,136.29,136.28,0.03]
[1745270447542,25.98694433,136.29,136.28,0.03]
[1745270448579,44.33018301,136.29,136.25,0.03]
[1745270452173,7.33837234,136.27,136.25,0.03]
[1745270452385,14.72,136.26,136.25,0.03]
[1745270452579,7.33837234,136.27,136.25,0.03]
[1745270452757,7.33798569,136.28,136.25,0.03]
[1745270452957,25.68257036,136.28,136.25,0.03]
[1745270455585,135.16964886,136.27,136.25,0.03]
[1745270457860,25.98855976,136.26,136.25,0.03]
[1745270458277,26.13072133,136.26,136.25,0.03]
[1745270461875,25.98855976,136.26,136.25,0.03]
[1745270467080,7.3389109,136.26,136.25,0.03]
[1745270467280,7.33864917,136.27,136.25,0.03]
[1745270470285,18.64964886,136.26,136.25,0.03]
[1745270471591,25.98855976,136.26,136.25,0.03]
[1745270482013,7.3389109,136.26,136.25,0.03]
[1745270483504,7.33837234,136.27,136.25,0.03]
[1745270499108,89.1389109,136.26,136.25,0.03]
[1745270504922,7.33837234,136.27,136.25,0.03]
[1745270514049,89.1389109,136.26,136.25,0.03]
[1745270514861,25.98855976,136.26,136.25,0.03]
[1745270518655,26.13072133,136.26,136.25,0.03]
[1745270518859,18.79181043,136.24,136.23,0.03]
[1745270519058,20.14216157,136.23,136.22,0.03]
[1745270519358,34.66216157,136.23,136.22,0.03]
[1745270520960,42.00268861,136.23,136.22,0.03]
[1745270522964,123.80268861,136.23,136.22,0.03]
[1745270527165,101.91216157,136.21,136.2,0.03]
[1745270528144,120.56181043,136.21,136.2,0.03]
[1745270528465,120.56181043,136.21,136.11,2.1825]
[1745270528466,18.64964886,136.19,136.11,2.1825]
[1745270529466,7.3432222,136.18,136.11,2.1825]
[1745270531566,22.1032222,136.18,136.11,2.1825]
[1745270531863,22.1032222,136.18,136.12,0.14216157]
[1745270532654,56.69819333,136.25,136.15,1.6525]
[1745270532855,33.42964886,136.24,136.15,1.6525]
[1745270533065,59.42964886,136.24,136.15,1.6525]
[1745270533653,59.11994143,136.24,136.15,1.6525]
[1745270534075,85.11994143,136.24,136.15,1.6525]
[1745270537171,81.8,136.19,136.15,1.6525]
[1745270540971,81.8,136.19,136.16,0.14216157]
[1745270541453,81.8,136.23,136.17,26.03]
[1745270541653,81.8,136.22,136.17,26.03]
[1745270546070,81.8,136.21,136.17,26.03]
[1745270551867,81.8,136.2,136.17,26.03]
[1745270570224,81.8,136.2,136.18,0.14216157]
[1745270580242,81.8,136.2,136.17,26.03]
[1745270581446,81.8,136.24,136.17,26.03]
[1745270581647,81.8,136.23,136.17,26.03]
[1745270587055,81.8,136.22,136.17,26.03]
[1745270588457,81.8,136.24,136.18,18.79181043]
[1745270589948,81.8,136.24,136.19,1.6156]
[1745270590149,81.8,136.24,136.21,26.0]
[1745270590354,81.8,136.23,136.21,26.0]
[1745270591050,81.8,136.25,136.22,0.14216157]
[1745270595853,81.8,136.24,136.22,0.14216157]
[1745270601453,81.8,136.23,136.18,26.0]
[1745270601772,81.8,136.22,136.19,26.0]
[1745270604662,81.8,136.21,136.19,26.0]
[1745270612253,81.8,136.2,136.17,0.03]
[1745270612656,81.8,136.2,136.18,26.0]
[1745270613074,81.8,136.2,136.17,0.03]
[1745270613373,81.8,136.2,136.18,26.0]
[1745270616375,81.8,136.19,136.18,26.0]
[1745270617059,81.8,136.19,136.17,0.17216157]
[1745270622255,81.8,136.18,136.17,0.03]
[1745270625181,13.83625872,136.21,136.17,0.03]
[1745270644400,6.4944,136.21,136.17,0.03]
[1745270654813,13.83601388,136.21,136.17,0.03]
[1745270655191,6.4944,136.21,136.17,0.03]
[1745270658531,8.97918398,136.23,136.17,0.03]
[1745270658697,81.8,136.22,136.17,0.03]
[1745270659714,89.14114442,136.22,136.17,0.03]
[1745270663316,81.8,136.21,136.17,0.03]
[1745270667221,81.8,136.21,136.17,26.03]
[1745270669222,81.8,136.2,136.17,26.03]
[1745270669403,81.8,136.19,136.17,26.03]
[1745270674531,81.8,136.19,136.18,14.47431183]
[1745270695637,6.2716,136.2,136.18,14.47431183]
[1745270695816,6.2716,136.2,136.19,14.47431183]
[1745270700726,81.8,136.2,136.19,14.47431183]
[1745270701034,81.8,136.2,136.17,0.03]
[1745270701248,81.8,136.2,136.19,14.47431183]
[1745270704535,1.6385,136.23,136.19,14.47431183]
[1745270704740,1.6385,136.23,136.22,14.47431183]
[1745270705649,8.97902704,136.23,136.22,14.47431183]
[1745270710259,1.6385,136.23,136.22,14.47431183]
[1745270712956,6.3433,136.24,136.22,72.37155915]
[1745270713260,0.063,136.25,136.23,14.47431183]
[1745270713427,0.063,136.25,136.24,14.47431183]
[1745270720760,0.063,136.25,136.24,14.6164734]
[1745270724961,0.063,136.25,136.24,72.51372072]
[1745270725766,0.063,136.25,136.24,14.6164734]
[1745270726055,0.063,136.25,136.24,91.16336958]
[1745270726239,0.063,136.25,136.24,92.76146958]
[1745270728369,0.063,136.25,136.24,96.37553945]
[1745270728551,0.063,136.25,136.24,14.47431183]
[1745270728954,0.063,136.25,136.24,40.6164734]
[1745270729356,0.063,136.25,136.24,40.47431183]
[1745270729664,0.063,136.25,136.24,40.6164734]
[1745270733166,0.063,136.25,136.24,26.14216157]
[1745270767883,0.063,136.25,136.24,18.79181043]
[1745270780887,0.063,136.26,136.25,18.79181043]
[1745270781993,0.063,136.26,136.25,44.79181043]
[1745270784803,0.063,136.31,136.3,44.64964886]
[1745270785103,0.063,136.33,136.31,0.14216157]
[1745270790509,0.063,136.33,136.31,18.79181043]
[1745270791022,0.063,136.33,136.32,44.64964886]
[1745270794186,0.063,136.33,136.32,44.79181043]
[1745270794995,0.063,136.36,136.35,44.64964886]
[1745270795301,0.063,136.36,136.35,44.79181043]
[1745270803108,0.063,136.36,136.35,89.84181043]
[1745270803314,0.063,136.36,136.35,99.38252636]
[1745270803704,0.063,136.37,136.36,74.97322636]
[1745270804317,0.063,136.38,136.37,63.84181043]
[1745270804497,0.063,136.38,136.37,73.38252636]
[1745270804898,0.063,136.38,136.37,82.33118544]
[1745270805322,0.063,136.41,136.4,88.84181043]
[1745270805524,0.063,136.47,136.41,1.0]
[1745270805727,81.8,136.49,136.48,26.0]
[1745270806031,1.6155,136.5,136.48,26.14216157]
[1745270808528,83.4155,136.5,136.46,26.0]
[1745270815116,81.8,136.49,136.45,26.0]
[1745270815435,81.8,136.48,136.45,26.0]
[1745270816013,81.8,136.47,136.46,26.0]
[1745270816336,6.433,136.47,136.4,33.15964886]
[1745270816543,81.8,136.46,136.43,26.0]
[1745270816745,81.8,136.45,136.43,26.0]
[1745270818137,83.3936,136.45,136.43,26.0]
[1745270821834,81.8,136.44,136.43,26.0]
[1745270827145,81.8,136.44,136.43,40.42471912]
[1745270827747,1.5936,136.45,136.43,40.42471912]
[1745270827940,1.5936,136.45,136.44,14.42471912]
[1745270834831,1.5936,136.45,136.43,40.42471912]
[1745270839456,81.8,136.44,136.43,40.42471912]
[1745270841652,81.8,136.44,136.43,26.0]
[1745270842060,81.8,136.44,136.43,40.42471912]
[1745270842238,81.8,136.44,136.43,26.0]
[1745270842441,81.8,136.44,136.43,40.42471912]
[1745270844638,81.8,136.43,136.41,26.0]
[1745270844964,20.77821912,136.42,136.4,0.03]
[1745270845133,102.57821912,136.42,136.4,0.03]
[1745270845549,97.76131912,136.41,136.4,0.03]
[1745270846647,105.09215996,136.41,136.4,0.03]
[1745270847063,81.77,136.39,136.37,0.03]
[1745270847246,81.77,136.38,136.37,0.03]
[1745270848451,102.54821912,136.38,136.37,0.03]
[1745270848772,109.88067255,136.38,136.37,0.03]
[1745270853363,95.45595343,136.38,136.37,0.03]
[1745270854062,13.68595343,136.38,136.37,0.03]
[1745270856566,28.11067255,136.38,136.37,0.03]
[1745270859956,81.77,136.36,136.33,26.0]
[1745270860156,81.77,136.35,136.33,26.0]
[1745270861549,81.77,136.34,136.33,26.0]
[1745270865872,7.33299112,136.37,136.33,26.0]
[1745270878579,28.11068651,136.38,136.33,26.0]
[1745270879089,13.68596739,136.38,136.33,26.0]
[1745270879383,6.3535,136.38,136.33,40.42471912]
[1745270879566,7.33207225,136.39,136.34,14.42471912]
[1745270879772,14.42471912,136.4,136.34,14.42471912]
[1745270879773,21.75617265,136.4,136.34,14.42471912]
[1745270882287,21.75664235,136.39,136.34,14.42471912]
[1745270883392,81.8,136.37,136.34,14.42471912]
[1745270884987,81.8,136.37,136.33,27.5746]
[1745270885198,44.05663949,136.41,136.36,40.42471912]
[1745270885570,29.63192037,136.41,136.36,40.42471912]
[1745270885769,14.42471912,136.4,136.36,40.42471912]
[1745270887492,14.42471912,136.4,136.35,40.42471912]
[1745270888991,29.63192037,136.41,136.35,40.42471912]
[1745270889193,14.42471912,136.4,136.35,40.42471912]
[1745270889370,81.8,136.36,136.35,40.42471912]
[1745270905301,81.8,136.39,136.38,26.0]
[1745270905510,81.8,136.42,136.38,40.42471912]
[1745270905804,0.063,136.43,136.39,14.42471912]
[1745270905805,81.8,136.41,136.39,14.42471912]
[1745270906906,81.8,136.41,136.38,40.42471912]
[1745270907081,81.8,136.41,136.39,14.42471912]
[1745270908493,81.8,136.41,136.4,14.42471912]
[1745270939518,81.8,136.41,136.38,40.42471912]
[1745270939820,81.8,136.41,136.38,26.0]
[1745270940620,81.8,136.41,136.38,40.42471912]
[1745270942500,81.8,136.41,136.38,40.42471912]
[1745270945023,81.8,136.4,136.38,40.42471912]
[1745270946811,81.8,136.4,136.38,26.0]
[1745270947726,81.8,136.4,136.38,40.42471912]
[1745270950727,81.8,136.4,136.39,40.42471912]
[1745270956824,81.8,136.42,136.39,40.42471912]
[1745270959439,81.8,136.42,136.38,26.0]
[1745270959620,96.22471912,136.41,136.38,26.0]
[1745270959818,81.8,136.41,136.38,26.0]
[1745270960331,81.8,136.41,136.36,26.0]
[1745270960517,81.8,136.41,136.37,14.42471912]
[1745270960712,109.94558672,136.41,136.36,14.42471912]
[1745270961136,109.94558672,136.41,136.36,40.42471912]
[1745270961842,109.94558672,136.41,136.36,26.0]
[1745270962234,109.94558672,136.41,136.36,40.42471912]
[1745270962541,96.22471912,136.4,136.35,14.42471912]
[1745270962735,81.8,136.39,136.35,14.42471912]
[1745270965115,81.8,136.38,136.34,26.0]
[1745270965315,81.8,136.38,136.34,40.42471912]
[1745270965530,81.8,136.37,136.34,40.42471912]
[1745270965727,81.8,136.36,136.34,40.42471912]
[1745270967620,81.8,136.36,136.32,26.03]
[1745270967820,81.8,136.36,136.35,14.42471912]
[1745270970543,81.8,136.36,136.34,14.42471912]
[1745270972946,81.8,136.36,136.32,26.03]
[1745270973350,81.8,136.36,136.34,14.42471912]
[1745270980046,81.8,136.35,136.33,14.42471912]
[1745270980251,81.8,136.35,136.32,40.45471912]
[1745270980559,81.8,136.35,136.33,14.42471912]
[1745270983152,81.8,136.34,136.33,14.42471912]
[1745270984360,81.8,136.34,136.32,26.03]
[1745270984541,81.8,136.34,136.33,14.42471912]
[1745270989059,81.8,136.36,136.33,14.42471912]
[1745270989238,81.8,136.36,136.34,14.42471912]
[1745270990046,81.8,136.36,136.32,26.03]
[1745270990348,81.8,136.36,136.34,14.42471912]
[1745270993659,6.3241,136.37,136.34,14.42471912]
[1745270993853,1.5884,136.38,136.36,14.42471912]
[1745270994453,81.8,136.39,136.36,14.42471912]
[1745270995159,81.8,136.39,136.37,14.42471912]
[1745271000754,81.8,136.38,136.37,14.42471912]
[1745271002067,81.8,136.38,136.33,26.0]
[1745271002472,81.8,136.38,136.35,14.42471912]
[1745271002655,81.8,136.38,136.33,26.0]
[1745271003056,96.22471912,136.38,136.33,26.0]
[1745271003257,14.42471912,136.36,136.32,0.03]
[1745271003460,14.42471912,136.36,136.32,14.45471912]
[1745271003657,81.8,136.35,136.32,0.03]
[1745271003877,81.8,136.34,136.32,0.03]
[1745271004169,81.8,136.33,136.32,0.03]
[1745271004475,89.13514266,136.33,136.32,0.03]
[1745271004774,103.55986178,136.33,136.32,0.03]
[1745271005558,21.75986178,136.33,136.32,0.03]
[1745271007074,42.17487221,136.33,136.32,0.03]
[1745271007963,42.17487221,136.33,136.31,0.03]
[1745271007964,26.0745,136.32,136.31,0.03]
[1745271008158,54.97921912,136.32,136.31,0.03]
[1745271008469,44.79181043,136.3,136.29,0.03]
[1745271008682,79.21652955,136.3,136.29,0.03]
[1745271008987,80.83332955,136.3,136.29,0.03]
[1745271009149,39.29102955,136.29,136.28,0.03]
[1745271009350,39.29102955,136.29,136.27,0.03]
[1745271009572,53.21652955,136.28,136.27,0.03]
[1745271009979,18.79181043,136.26,136.2,0.03]
[1745271010186,33.21652955,136.26,136.2,0.03]
[1745271010571,54.83332955,136.26,136.2,0.03]
[1745271011882,62.17224045,136.26,136.2,0.03]
[1745271012480,18.79181043,136.24,136.2,0.03]
[1745271012671,33.21652955,136.24,136.2,0.03]
[1745271013557,40.5565178,136.24,136.2,0.03]
[1745271015180,60.5565178,136.24,136.2,0.03]
[1745271015362,61.5565178,136.24,136.23,1e-08]
[1745271015570,64.79181043,136.22,136.2,0.03]
[1745271015768,153.21830603,136.22,136.2,0.03]
[1745271016287,18.79181043,136.21,136.2,1e-08]
[1745271016583,120.59181042,136.2,136.19,0.03]
[1745271017094,127.93395432,136.2,136.19,0.03]
[1745271017280,44.79181043,136.18,136.17,0.03]
[1745271017599,59.21652955,136.18,136.17,0.03]
[1745271018366,0.14216157,136.16,136.13,0.03]
[1745271018675,0.14216157,136.16,136.11,0.5]
[1745271018676,18.79181043,136.13,136.11,0.5]
[1745271018885,33.80646943,136.12,136.11,0.5]
[1745271019193,68.23118855,136.12,136.11,0.5]
[1745271019390,68.23118855,136.12,136.0,14.64]
[1745271019595,33.21652955,136.11,136.04,14.42471912]
[1745271020303,33.21652955,136.11,136.03,26.0]
[1745271021000,40.5635283,136.11,136.03,40.42471912]
[1745271021575,40.5635283,136.11,136.04,14.42471912]
[1745271021901,40.5635283,136.11,136.03,40.42471912]
[1745271022195,40.5635283,136.11,136.05,14.42471912]
[1745271022196,7.34699875,136.11,136.05,14.42471912]
[1745271022403,21.77171787,136.11,136.05,14.42471912]
[1745271022775,7.34699875,136.11,136.05,14.42471912]
[1745271022998,21.77171787,136.11,136.06,14.42471912]
[1745271023300,7.34699875,136.11,136.06,14.42471912]
[1745271023778,21.77171787,136.11,136.06,14.42471912]
[1745271024177,29.439514,136.12,136.07,14.42471912]
[1745271024373,13.35189488,136.12,136.08,14.42471912]
[1745271024779,13.35189488,136.12,136.07,14.42471912]
[1745271025398,27.776614,136.12,136.07,14.42471912]
[1745271025697,20.43001912,136.12,136.06,14.42471912]
[1745271025897,21.77078514,136.13,136.07,14.42471912]
[1745271026080,7.34606602,136.13,136.08,14.42471912]
[1745271026287,21.77078514,136.13,136.07,14.42471912]
[1745271026586,21.77078514,136.13,136.05,40.64]
[1745271026771,21.77078514,136.13,136.08,14.42471912]
[1745271027809,21.77078514,136.13,136.05,40.64]
[1745271028176,21.77078514,136.13,136.08,14.42471912]
[1745271031407,21.77009887,136.14,136.08,14.42471912]
[1745271031994,21.77009887,136.14,136.07,14.42471912]
[1745271034308,14.42471912,136.13,136.06,14.42471912]
[1745271034608,14.42471912,136.13,136.07,14.42471912]
[1745271034908,14.42471912,136.12,136.07,14.42471912]
[1745271035703,7.34699875,136.11,136.06,14.42471912]
[1745271036715,7.34699875,136.11,136.05,26.0]
[1745271036912,21.77171787,136.11,136.05,26.0]
[1745271037211,14.42471912,136.12,136.06,14.42471912]
[1745271037712,14.42471912,136.11,136.06,14.42471912]
[1745271038804,14.42471912,136.11,136.05,40.42471912]
[1745271039114,33.21652955,136.11,136.04,0.03]
[1745271039316,40.5635283,136.11,136.04,0.03]
[1745271041106,40.5635283,136.11,136.04,26.03]
[1745271041415,40.5635283,136.11,136.04,0.03]
[1745271044242,40.5635283,136.11,136.04,14.45471912]
[1745271046943,40.5635283,136.11,136.04,0.03]
[1745271047237,26.13880918,136.11,136.04,14.45471912]
[1745271047547,40.5635283,136.11,136.04,0.03]
[1745271052655,26.13880918,136.11,136.04,0.03]
[1745271052953,40.5635283,136.11,136.04,0.03]
[1745271053131,21.77171787,136.11,136.05,14.42471912]
[1745271053338,26.0,136.13,136.06,14.42471912]
[1745271053339,7.34591934,136.13,136.06,14.42471912]
[1745271053537,25.70882914,136.14,136.06,14.42471912]
[1745271053853,14.42471912,136.11,136.06,14.42471912]
[1745271054648,25.70882914,136.14,136.06,14.42471912]
[1745271054821,7.34537975,136.14,136.08,14.42471912]
[1745271055027,21.77009887,136.14,136.09,1.5292]
[1745271055268,14.42471912,136.13,136.09,1.5292]
[1745271055437,81.8,136.12,136.09,1.5292]
[1745271060756,81.8,136.12,136.09,15.95391912]
[1745271061059,81.8,136.12,136.1,15.68751742]
[1745271061252,81.8,136.15,136.1,15.68751742]
[1745271061564,96.22471912,136.15,136.1,15.68751742]
[1745271061754,81.8,136.15,136.1,15.68751742]
[1745271062257,81.8,136.15,136.11,14.42471912]
[1745271063165,81.8,136.15,136.14,14.42471912]
[1745271063368,81.863,136.17,136.14,14.42471912]
[1745271063861,81.863,136.17,136.15,14.42471912]
[1745271064064,81.863,136.17,136.14,14.42471912]
[1745271064248,81.863,136.17,136.14,15.95391912]
[1745271064946,0.063,136.17,136.16,40.42471912]
[1745271065267,0.063,136.17,136.16,14.42471912]
[1745271066170,0.063,136.17,136.16,14.56688069]
[1745271066363,0.063,136.17,136.16,40.56688069]
[1745271066760,0.063,136.17,136.16,39.64392955]
[1745271068389,0.063,136.18,136.17,18.64964886]
[1745271068551,0.063,136.18,136.17,33.07436798]
[1745271068972,0.063,136.18,136.17,34.63656798]
[1745271069571,0.063,136.18,136.17,34.77872955]
[1745271069750,0.063,136.25,136.22,14.42471912]
[1745271069951,0.063,136.25,136.23,14.42471912]
[1745271071463,0.063,136.25,136.24,14.42471912]
[1745271071863,0.063,136.25,136.23,14.42471912]
[1745271078290,0.063,136.25,136.24,14.42471912]
[1745271079957,0.063,136.25,136.24,33.21652955]
[1745271084701,0.063,136.28,136.27,26.0]
[1745271084998,0.063,136.28,136.27,55.38688069]
[1745271086589,0.063,136.28,136.27,74.03652955]
[1745271104589,0.063,136.28,136.27,131.73540603]
[1745271106408,0.063,136.28,136.27,74.03652955]
[1745271107011,0.063,136.28,136.27,55.24471912]
[1745271107711,0.063,136.28,136.27,55.38688069]
[1745271119006,0.063,136.28,136.27,26.0]
[1745271119316,0.063,136.28,136.27,40.42471912]
[1745271121122,0.063,136.28,136.27,26.0]
[1745271121419,0.063,136.28,136.27,40.42471912]
[1745271123898,0.063,136.28,136.26,14.42471912]
[1745271124423,0.063,136.28,136.27,14.42471912]
[1745271125304,0.063,136.28,136.23,14.74]
[1745271125507,6.56,136.26,136.23,14.42471912]
[1745271125728,6.56,136.26,136.23,40.42471912]
[1745271126225,6.56,136.26,136.24,14.42471912]
[1745271126814,6.56,136.26,136.23,40.42471912]
[1745271130807,13.89912959,136.26,136.23,26.0]
[1745271131527,14.42471912,136.25,136.19,14.77]
[1745271131729,14.42471912,136.24,136.19,14.77]
[1745271131931,14.42471912,136.24,136.19,29.19471912]
[1745271132232,16.00501912,136.23,136.19,14.77]
[1745271132428,6.4238,136.22,136.19,0.03]
[1745271133114,28.18989402,136.22,136.19,0.03]
[1745271133819,14.42471912,136.21,136.19,0.03]
[1745271134326,14.42471912,136.2,136.19,0.03]
[1745271135532,21.76686302,136.2,136.19,0.03]
[1745271140329,7.3421439,136.2,136.19,0.03]
[1745271140536,81.8,136.21,136.19,0.03]
[1745271141052,26.0,136.19,136.11,0.03]
[1745271141231,22.42881912,136.13,136.11,0.03]
[1745271142042,0.14216157,136.12,136.11,0.03]
[1745271142222,33.21652955,136.12,136.11,0.03]
[1745271142632,40.56298855,136.12,136.11,0.03]
[1745271144828,21.77117812,136.12,136.11,0.03]
[1745271149544,14.42471912,136.12,136.11,0.03]
[1745271149740,8.0041,136.13,136.11,0.03]
[1745271149944,6.4238,136.13,136.11,0.03]
[1745271150132,20.84851912,136.13,136.11,0.03]
[1745271151058,21.7702819,136.14,136.11,0.03]
[1745271151257,89.14500503,136.15,136.11,0.03]
[1745271151462,103.56972415,136.15,136.11,0.03]
[1745271153357,81.8,136.15,136.11,0.03]
[1745271153651,29.63824313,136.16,136.11,14.45471912]
[1745271153857,29.63824313,136.16,136.11,0.03]
[1745271154057,29.63824313,136.16,136.11,14.45471912]
[1745271154235,28.05364313,136.16,136.11,14.45471912]
[1745271154436,118.30857743,136.17,136.12,14.42471912]
[1745271156535,103.56857743,136.17,136.12,14.42471912]
[1745271156864,103.56857743,136.17,136.11,26.03]
[1745271157260,103.56857743,136.17,136.12,14.42471912]
[1745271158561,21.76804081,136.18,136.13,14.42471912]
[1745271159960,7.34332169,136.18,136.13,14.42471912]
[1745271160153,21.76804081,136.18,136.13,14.42471912]
[1745271160452,14.42471912,136.17,136.12,14.42471912]
[1745271164262,14.42471912,136.13,136.11,0.03]
[1745271164766,7.869,136.19,136.13,0.14216157]
[1745271164973,7.869,136.19,136.14,14.42471912]
[1745271165170,7.869,136.19,136.15,26.0]
[1745271165343,6.2844,136.19,136.15,26.0]
[1745271165542,20.70911912,136.19,136.15,26.0]
[1745271166975,14.42471912,136.18,136.15,26.0]
[1745271171167,28.05186727,136.19,136.15,26.0]
[1745271171572,20.70911912,136.19,136.15,26.0]
[1745271172666,6.2844,136.19,136.15,26.0]
[1745271172861,7.34241125,136.2,136.15,40.42471912]
[1745271173171,21.76713037,136.2,136.15,40.42471912]
[1745271173569,14.42471912,136.19,136.15,26.0]
[1745271176158,21.76713037,136.2,136.15,40.42471912]
[1745271177561,14.42471912,136.19,136.15,40.42471912]
[1745271180983,21.76743004,136.19,136.15,40.42471912]
[1745271183390,14.42471912,136.19,136.15,40.42471912]
[1745271183994,0.063,136.23,136.17,14.42471912]
[1745271184281,0.063,136.23,136.19,14.42471912]
[1745271184783,0.063,136.23,136.17,26.0]
[1745271184784,0.063,136.23,136.2,14.42471912]
[1745271184962,0.063,136.23,136.18,18.64964886]
[1745271184963,0.063,136.23,136.21,14.42471912]
[1745271185163,0.063,136.23,136.21,40.42471912]
[1745271185683,0.063,136.23,136.22,14.42471912]
[1745271189583,0.063,136.23,136.22,14.56688069]